fUSD/lending_fUSD_20250111
["ID","MTS","AMOUNT","RATE_DAILY","PERIOD"]
[348524877,1736603465544,-500.0,0.00011812,2]
[348524878,1736603465554,-2883.11,0.00011812,2]
[348524879,1736603465563,-500.0,0.00011812,2]
[348524880,1736603465573,-764.33,0.00011812,2]
[348524881,1736603465584,-694.81,0.00011812,2]
[348524882,1736603465594,-500.0,0.00011812,2]
[348524883,1736603465603,-500.0,0.00011812,2]
[348524884,1736603465615,-500.0,0.00011812,2]
[348524885,1736603465624,-881.06,0.00011812,2]
[348524886,1736603465634,-218.49384816,0.00011866,2]
[348524887,1736603465644,-1000.0,0.00011899,2]
[348524888,1736603465653,-152.0,0.00011937,6]
[348524889,1736603465663,-150.0,0.00011947,2]
[348524890,1736603465673,-218.49384816,0.00011969,2]
[348524891,1736603465682,-358.4769591,0.00011983,2]
[348524892,1736603465691,-5459.2857941,0.00011992,2]
[348524893,1736603465701,-5000.0,0.00012,2]
[348524894,1736603465710,-188.13873663,0.00012,2]
[348524895,1736603465720,-187.0,0.00012,2]
[348524896,1736603465729,-23214.0,0.00012,2]
[348524897,1736603465738,-200.03976083,0.00012,2]
[348524898,1736603465748,-150.0,0.00012028,2]
[348524899,1736603465757,-150.0,0.00012039,2]
[348524900,1736603465767,-200.0,0.00012055,2]
[348524901,1736603465776,-150.0,0.00012055,2]
[348524902,1736603465786,-150.0,0.00012064,2]
[348524903,1736603465795,-150.0,0.00012068,2]
[348524904,1736603465805,-218.49384816,0.00012072,2]
[348524905,1736603465814,-5676.7326487,0.00012077,2]
[348524906,1736603465824,-2547.3463974,0.00012077,2]
[348524907,1736603465833,-500.0,0.00012078,2]
[348524908,1736603465843,-518.32,0.00012078,2]
[348524909,1736603465854,-1058.0,0.00012079,2]
[348524910,1736603465865,-777.18,0.00012079,2]
[348524911,1736603465875,-500.0,0.00012079,2]
[348524912,1736603465884,-674.18,0.00012079,2]
[348524913,1736603465893,-500.0,0.00012079,2]
[348524914,1736603465903,-500.0,0.00012079,2]
[348524915,1736603465912,-544.17,0.00012079,2]
[348524916,1736603465922,-500.0,0.00012079,2]
[348524917,1736603465933,-500.0,0.00012079,2]
[348524918,1736603465942,-580.72,0.00012079,2]
[348524919,1736603465952,-500.0,0.00012079,2]
[348524920,1736603465961,-500.0,0.00012079,2]
[348524921,1736603465970,-500.0,0.00012079,2]
[348524922,1736603465980,-553.81,0.00012079,2]
[348524923,1736603465990,-518.9,0.00012079,2]
[348524924,1736603466002,-572.98,0.00012079,2]
[348524925,1736603466011,-501.21,0.00012079,2]
[348524926,1736603466022,-500.0,0.00012079,2]
[348524927,1736603466033,-1089.39,0.00012081,2]
[348524928,1736603466044,-1328.17,0.00012081,2]
[348524929,1736603466055,-1316.37,0.00012081,2]
[348524930,1736603466065,-1075.49,0.00012081,2]
[348524931,1736603466075,-500.0,0.00012081,2]
[348524932,1736603466085,-931.88,0.00012081,2]
[348524933,1736603466095,-1446.69,0.00012081,2]
[348524934,1736603466104,-841.26,0.00012081,2]
[348524935,1736603466114,-819.81,0.00012082,2]
[348524936,1736603466123,-500.0,0.00012082,2]
[348524937,1736603466132,-2354.45,0.00012083,2]
[348524938,1736603466142,-1110.44,0.00012083,2]
[348524939,1736603466151,-984.69,0.00012083,2]
[348524940,1736603466160,-514.6,0.00012083,2]
[348524941,1736603466170,-500.0,0.00012084,2]
[348524942,1736603466180,-500.0,0.00012084,2]
[348524943,1736603466191,-663.68,0.00012084,2]
[348524944,1736603466202,-500.0,0.00012084,2]
[348524945,1736603466213,-625.65,0.00012084,2]
[348524946,1736603466223,-578.21,0.00012084,2]
[348524947,1736603466234,-1286.09,0.00012084,2]
[348524948,1736603466244,-1154.22,0.00012084,2]
[348524949,1736603466254,-500.0,0.00012084,2]
[348524950,1736603466264,-500.0,0.00012084,2]
[348524951,1736603466273,-1265.74,0.00012084,2]
[348524952,1736603466283,-633.29,0.00012084,2]
[348524953,1736603466292,-3324.76,0.00012084,2]
[348524954,1736603466301,-500.0,0.00012084,2]
[348524955,1736603466310,-1160.42,0.00012084,2]
[348524956,1736603466319,-812.63,0.00012084,2]
[348524957,1736603466329,-1272.49,0.00012084,2]
[348524958,1736603466339,-1317.24,0.00012084,2]
[348524959,1736603466349,-1252.89,0.00012084,2]
[348524960,1736603466358,-1492.12,0.00012084,2]
[348524961,1736603466368,-500.0,0.00012084,2]
[348524962,1736603466377,-2839.32,0.00012084,2]
[348524963,1736603466386,-2731.28,0.00012084,2]
[348524964,1736603466396,-1077.97,0.00012084,2]
[348524965,1736603466407,-1146.77,0.00012084,2]
[348524966,1736603466416,-829.6,0.00012084,2]
[348524967,1736603466427,-500.0,0.00012084,2]
[348524968,1736603466438,-1695.87,0.00012084,2]
[348524969,1736603466448,-1185.34,0.00012084,2]
[348524970,1736603466459,-2047.27,0.00012084,2]
[348524971,1736603466471,-1067.7,0.00012084,2]
[348524972,1736603466480,-1021.9,0.00012084,2]
[348524973,1736603466489,-500.0,0.00012084,2]
[348524974,1736603466499,-803.46,0.00012084,2]
[348524975,1736603466510,-1346.27,0.00012084,2]
[348524976,1736603466520,-1713.52,0.00012084,2]
[348524977,1736603466530,-173.33768719,0.00012084,2]
[348524978,1736603466539,-1018.84,0.00012084,2]
[348524979,1736603466549,-897.68,0.00012085,2]
[348524980,1736603466559,-820.36,0.00012085,2]
[348524981,1736603466568,-877.47,0.00012085,2]
[348524982,1736603466578,-2093.3,0.00012085,2]
[348524983,1736603466587,-999.0,0.00012085,2]
[348524984,1736603466597,-2101.68,0.00012085,2]
[348524985,1736603466607,-500.0,0.00012085,2]
[348524986,1736603466616,-626.22,0.00012085,2]
[348524987,1736603466626,-991.1,0.00012085,2]
[348524988,1736603466635,-1117.67,0.00012085,2]
[348524989,1736603466644,-955.94,0.00012086,2]
[348524990,1736603466654,-172.87506014,0.00012086,2]
[348524991,1736603466664,-971.79,0.00012086,2]
[348524992,1736603466673,-520.83,0.00012086,2]
[348524993,1736603466682,-905.0,0.00012086,2]
[348524994,1736603466692,-1064.79,0.00012086,2]
[348524995,1736603466701,-954.36,0.00012086,2]
[348524996,1736603466710,-1828.24,0.00012086,2]
[348524997,1736603466719,-621.53,0.00012086,2]
[348524998,1736603466728,-443.85842778,0.00012086,2]
[348524999,1736603466738,-500.0,0.00012086,2]
[348525000,1736603466747,-1305.99,0.00012086,2]
[348525001,1736603466756,-500.0,0.00012086,2]
[348525002,1736603466766,-1196.5,0.00012086,2]
[348525003,1736603466775,-1086.04,0.00012086,2]
[348525004,1736603466784,-1086.04,0.00012086,2]
[348525005,1736603466794,-730.85,0.00012086,2]
[348525006,1736603466803,-500.0,0.00012086,2]
[348525007,1736603466812,-1996.3,0.00012086,2]
[348525008,1736603466821,-500.0,0.00012086,2]
[348525009,1736603466830,-500.0,0.00012086,2]
[348525010,1736603466839,-813.94,0.00012086,2]
[348525011,1736603466849,-500.0,0.00012086,2]
[348525012,1736603466860,-573.53,0.00012086,2]
[348525013,1736603466869,-500.0,0.00012086,2]
[348525014,1736603466879,-629.14,0.00012086,2]
[348525015,1736603466889,-581.9,0.00012086,2]
[348525016,1736603466898,-641.71,0.00012086,2]
[348525017,1736603466908,-844.03,0.00012086,2]
[348525018,1736603466917,-500.0,0.00012086,2]
[348525019,1736603466927,-623.44,0.00012086,2]
[348525020,1736603466937,-500.0,0.00012086,2]
[348525021,1736603466946,-1695.69,0.00012086,2]
[348525022,1736603466955,-704.6,0.00012086,2]
[348525023,1736603466964,-1059.37,0.00012086,2]
[348525024,1736603466974,-500.0,0.00012086,2]
[348525025,1736603466983,-672.1,0.00012086,2]
[348525026,1736603466993,-593.17,0.00012086,2]
[348525027,1736603467003,-500.0,0.00012086,2]
[348525028,1736603467012,-1209.760486,0.00012086,2]
[348525029,1736603467022,-1171.53407,0.00012086,2]
[348525030,1736603467031,-1399.18997477,0.00012086,2]
[348525031,1736603467051,-622.87002523,0.00012086,2]
[348525032,1736603467060,-500.0,0.00012086,2]
[348525033,1736603467069,-500.0,0.00012086,2]
[348525034,1736603467079,-616.67,0.00012086,2]
[348525035,1736603467088,-277.33909501,0.00012086,2]
[348525036,1736603467098,-239.87090499,0.00012086,2]
[348525037,1736603467108,-500.0,0.00012086,2]
[348525038,1736603467117,-500.0,0.00012086,2]
[348525039,1736603467127,-1131.42485851,0.00012086,2]
[348525041,1736603845967,1000.0,0.0002,120]
[348525042,1736603903699,2000.0,0.0002,120]
[348525044,1736604306254,583.18,8.219e-05,2]
[348525050,1736604631663,-1000.0,8.629e-05,2]
[348525051,1736604631812,-22890.0,8.629e-05,2]
[348525052,1736604631822,-1000.0,8.668e-05,2]
[348525053,1736604631831,-1204.76,8.676e-05,2]
[348525054,1736604631841,-1243.37,8.751e-05,2]
[348525055,1736604631850,-494.03,8.775e-05,2]
[348525056,1736604631859,-1347.68,8.865e-05,2]
[348525057,1736604631869,-20043.0,8.865e-05,10]
[348525058,1736604631878,-164.96,8.877e-05,2]
[348525059,1736604631887,-193.08,8.944e-05,2]
[348525060,1736604631897,-17839.1096,8.945e-05,2]
[348525061,1736604631907,-500.0,8.947e-05,2]
[348525062,1736604631917,-1426.9,9.041e-05,2]
[348525063,1736604631926,-5697.95,9.097e-05,2]
[348525064,1736604631935,-250.0,9.109e-05,2]
[348525065,1736604631945,-500.0,9.109e-05,2]
[348525066,1736604631954,-500.0,9.109e-05,2]
[348525067,1736604631963,-500.0,9.109e-05,2]
[348525068,1736604631972,-475.32235151,9.109e-05,2]
[348525069,1736604631982,-1108.55173404,9.141e-05,2]
[348525070,1736604631994,-53.09826596,9.141e-05,2]
[348525071,1736604632003,-554.67015027,9.175e-05,2]
[348525072,1736604632013,-139.05367763,9.312e-05,2]
[348525073,1736604632025,-3457.87183613,9.312e-05,2]
[348525074,1736604632055,-304.76448624,9.312e-05,2]
[348525075,1736604632064,-264.05,9.312e-05,2]
[348525076,1736604632074,-23693.45,9.312e-05,2]
[348525077,1736604632083,-900.28,9.312e-05,2]
[348525078,1736604632093,-7727.11,9.312e-05,2]
[348525079,1736604632102,-250.0,9.328e-05,2]
[348525080,1736604632111,-500.0,9.664e-05,2]
[348525081,1736604632122,-200.0,9.703e-05,2]
[348525082,1736604632131,-1000.0,9.752e-05,2]
[348525083,1736604632140,-261.7983,9.789e-05,2]
[348525084,1736604632150,-4609.0722,9.79e-05,2]
[348525085,1736604632159,-500.0,9.888e-05,2]
[348525086,1736604632168,-500.0,9.888e-05,2]
[348525087,1736604632177,-1198.31,9.888e-05,2]
[348525088,1736604632186,-500.0,9.888e-05,2]
[348525089,1736604632196,-859.12,9.888e-05,2]
[348525090,1736604632206,-500.0,9.888e-05,2]
[348525091,1736604632216,-224.90714658,9.888e-05,2]
[348525092,1736604632227,-722.94285342,9.888e-05,2]
[348525093,1736604632238,-3638.85,9.888e-05,2]
[348525094,1736604632247,-500.0,9.888e-05,2]
[348525095,1736604632256,-171.10521862,9.888e-05,2]
[348525098,1736604632292,-328.89478138,9.888e-05,2]
[348525100,1736604632304,-799.27,9.888e-05,2]
[348525101,1736604632314,-1201.74,9.888e-05,2]
[348525102,1736604632324,-959.15,9.888e-05,2]
[348525103,1736604632334,-677.89,9.888e-05,2]
[348525104,1736604632343,-1470.61,9.888e-05,2]
[348525105,1736604632352,-500.0,9.888e-05,2]
[348525106,1736604632362,-2742.65,9.888e-05,2]
[348525107,1736604632371,-500.0,9.888e-05,2]
[348525108,1736604632381,-500.0,9.888e-05,2]
[348525109,1736604632390,-1246.82,9.888e-05,2]
[348525110,1736604632400,-1725.71,9.888e-05,2]
[348525111,1736604632410,-552.08,9.888e-05,2]
[348525112,1736604632419,-1451.81,9.888e-05,2]
[348525113,1736604632429,-500.0,9.888e-05,2]
[348525114,1736604632439,-1104.76,9.888e-05,2]
[348525115,1736604632448,-500.0,9.888e-05,2]
[348525116,1736604632457,-1160.96,9.888e-05,2]
[348525117,1736604632467,-500.0,9.888e-05,2]
[348525118,1736604632476,-924.88,9.888e-05,2]
[348525119,1736604632485,-500.0,9.888e-05,2]
[348525121,1736604632494,-845.84,9.888e-05,2]
[348525123,1736604632503,-1425.89,9.888e-05,2]
[348525125,1736604632514,-905.01,9.888e-05,2]
[348525127,1736604632523,-727.59,9.888e-05,2]
[348525129,1736604632532,-14303.558878,9.888e-05,2]
[348525130,1736604632541,-9356.99609209,9.888e-05,2]
[348525131,1736604637631,-1984.799535,9.888e-05,2]
[348525132,1736604637643,-3190.99177591,9.888e-05,2]
[348525133,1736604637653,-500.0,9.888e-05,2]
[348525134,1736604637662,-679.2,9.888e-05,2]
[348525135,1736604637672,-722.85,9.888e-05,2]
[348525136,1736604637682,-655.46,9.888e-05,2]
[348525137,1736604637691,-209.04482066,9.888e-05,2]
[348525138,1736604637714,-290.95517934,9.888e-05,2]
[348525139,1736604637724,-211.257229,9.888e-05,2]
[348525140,1736604637734,-500.0,9.888e-05,2]
[348525141,1736604637743,-500.0,9.888e-05,2]
[348525142,1736604637753,-500.0,9.888e-05,2]
[348525143,1736604637763,-500.0,9.888e-05,2]
[348525144,1736604637773,-741.73,9.888e-05,2]
[348525145,1736604637783,-500.0,9.888e-05,2]
[348525146,1736604637792,-500.0,9.889e-05,2]
[348525147,1736604637801,-500.0,9.889e-05,2]
[348525148,1736604637810,-500.0,9.889e-05,2]
[348525149,1736604637820,-500.0,9.889e-05,2]
[348525150,1736604637829,-500.0,9.889e-05,2]
[348525151,1736604637838,-500.0,9.889e-05,2]
[348525152,1736604637847,-380.78,9.889e-05,2]
[348525153,1736604637857,-500.0,9.889e-05,2]
[348525154,1736604637867,-503.33462853,9.889e-05,2]
[348525155,1736604637876,-500.0,9.889e-05,2]
[348525156,1736604637886,-500.0,9.889e-05,2]
[348525157,1736604637895,-500.0,9.889e-05,2]
[348525158,1736604637905,-503.31007717,9.889e-05,2]
[348525159,1736604637914,-500.0,9.889e-05,2]
[348525160,1736604637924,-503.69324661,9.889e-05,2]
[348525161,1736604637933,-500.0,9.889e-05,2]
[348525162,1736604637942,-503.74187783,9.889e-05,2]
[348525163,1736604637951,-500.0,9.889e-05,2]
[348525164,1736604637960,-500.0,9.889e-05,2]
[348525166,1736604637969,-500.0,9.889e-05,2]
[348525168,1736604637979,-500.0,9.889e-05,2]
[348525170,1736604637988,-500.0,9.889e-05,2]
[348525172,1736604637997,-500.32583259,9.889e-05,2]
[348525174,1736604638006,-500.0,9.889e-05,2]
[348525176,1736604638016,-500.0,9.889e-05,2]
[348525178,1736604638025,-500.0,9.889e-05,2]
[348525180,1736604638034,-500.0,9.889e-05,2]
[348525182,1736604638044,-500.0,9.889e-05,2]
[348525184,1736604638053,-500.0,9.889e-05,2]
[348525186,1736604638062,-557.86865217,9.889e-05,2]
[348525187,1736604638071,-500.0,9.889e-05,2]
[348525189,1736604638080,-500.0,9.889e-05,2]
[348525191,1736604638090,-500.0,9.889e-05,2]
[348525193,1736604638098,-361.76150969,9.889e-05,2]
[348525196,1736604638112,-138.23849031,9.889e-05,2]
[348525198,1736604638120,-233.69950969,9.889e-05,2]
[348525203,1736604638160,-266.30049031,9.889e-05,2]
[348525205,1736604638170,-501.06791574,9.889e-05,2]
[348525207,1736604638179,-580.7,9.889e-05,2]
[348525209,1736604638188,-264.6304794,9.889e-05,2]
[348525211,1736604638198,-500.0,9.889e-05,2]
[348525214,1736604638207,-500.0,9.889e-05,2]
[348525217,1736604638216,-500.78213096,9.889e-05,2]
[348525220,1736604638225,-254.19397449,9.889e-05,2]
[348525223,1736604638237,-245.80602551,9.889e-05,2]
[348525241,1736604638475,-500.0,9.889e-05,2]
[348525242,1736604638485,-500.5995242,9.889e-05,2]
[348525243,1736604638495,-500.0,9.889e-05,2]
[348525244,1736604638503,-500.0,9.889e-05,2]
[348525245,1736604638513,-511.1,9.889e-05,2]
[348525246,1736604638522,-500.0,9.889e-05,2]
[348525247,1736604638531,-500.0,9.889e-05,2]
[348525248,1736604638540,-500.0,9.889e-05,2]
[348525249,1736604638549,-379.99445029,9.889e-05,2]
[348525250,1736604638560,-120.00554971,9.889e-05,2]
[348525251,1736604638569,-500.0,9.889e-05,2]
[348525252,1736604638578,-500.0,9.889e-05,2]
[348525253,1736604638588,-500.0,9.889e-05,2]
[348525254,1736604638597,-500.0,9.889e-05,2]
[348525255,1736604638606,-500.0,9.889e-05,2]
[348525256,1736604638615,-500.0,9.889e-05,2]
[348525257,1736604638623,-500.0,9.889e-05,2]
[348525258,1736604638632,-500.0,9.889e-05,2]
[348525259,1736604638641,-500.0,9.889e-05,2]
[348525260,1736604638650,-500.0,9.889e-05,2]
[348525261,1736604638659,-500.0,9.889e-05,2]
[348525262,1736604638668,-500.0,9.889e-05,2]
[348525263,1736604638677,-500.0,9.889e-05,2]
[348525264,1736604638686,-500.48007366,9.889e-05,2]
[348525265,1736604638695,-500.0,9.889e-05,2]
[348525266,1736604638704,-500.0,9.889e-05,2]
[348525267,1736604638713,-500.0,9.889e-05,2]
[348525268,1736604638722,-500.0,9.889e-05,2]
[348525269,1736604638731,-500.0,9.889e-05,2]
[348525270,1736604638740,-500.0,9.889e-05,2]
[348525271,1736604638749,-500.0,9.889e-05,2]
[348525272,1736604638758,-500.0,9.889e-05,2]
[348525273,1736604638768,-500.31264481,9.889e-05,2]
[348525274,1736604638777,-500.0,9.889e-05,2]
[348525275,1736604638787,-500.0,9.889e-05,2]
[348525276,1736604638796,-373.95645412,9.889e-05,2]
[348525277,1736604638817,-126.04354588,9.889e-05,2]
[348525278,1736604638826,-500.0,9.889e-05,2]
[348525279,1736604638835,-500.0,9.889e-05,2]
[348525280,1736604638844,-500.0,9.889e-05,2]
[348525281,1736604638853,-500.0,9.889e-05,2]
[348525282,1736604638863,-500.0,9.889e-05,2]
[348525283,1736604638872,-500.0,9.889e-05,2]
[348525284,1736604638882,-500.0,9.889e-05,2]
[348525285,1736604638891,-500.0,9.889e-05,2]
[348525286,1736604638901,-501.45989915,9.889e-05,2]
[348525287,1736604638910,-500.0,9.889e-05,2]
[348525288,1736604638920,-500.0,9.889e-05,2]
[348525289,1736604638929,-500.66630858,9.889e-05,2]
[348525290,1736604638938,-500.0,9.889e-05,2]
[348525291,1736604638947,-500.0,9.889e-05,2]
[348525292,1736604638956,-500.0,9.889e-05,2]
[348525293,1736604638965,-500.0,9.889e-05,2]
[348525294,1736604638974,-313.4286998,9.889e-05,2]
[348525295,1736604638983,-500.0,9.889e-05,2]
[348525296,1736604638993,-163.94341831,9.889e-05,2]
[348525297,1736604639002,-500.0,9.889e-05,2]
[348525298,1736604639011,-500.0,9.889e-05,2]
[348525299,1736604639020,-500.0,9.889e-05,2]
[348525300,1736604639030,-500.0,9.889e-05,2]
[348525301,1736604639039,-500.0,9.889e-05,2]
[348525302,1736604639048,-500.0,9.889e-05,2]
[348525303,1736604639057,-500.0,9.889e-05,2]
[348525304,1736604639066,-602.55,9.889e-05,2]
[348525305,1736604639076,-500.0,9.889e-05,2]
[348525306,1736604639085,-500.0,9.889e-05,2]
[348525307,1736604639094,-500.0,9.889e-05,2]
[348525308,1736604639103,-500.0,9.889e-05,2]
[348525309,1736604639113,-500.0,9.889e-05,2]
[348525310,1736604639121,-500.0,9.889e-05,2]
[348525311,1736604639131,-500.0,9.889e-05,2]
[348525312,1736604639140,-500.0,9.889e-05,2]
[348525313,1736604639150,-500.0,9.889e-05,2]
[348525314,1736604639160,-548.94,9.889e-05,2]
[348525315,1736604639169,-500.0,9.889e-05,2]
[348525316,1736604639178,-500.0,9.889e-05,2]
[348525317,1736604639187,-500.0,9.889e-05,2]
[348525318,1736604639195,-500.0,9.889e-05,2]
[348525319,1736604639205,-500.0,9.889e-05,2]
[348525320,1736604639214,-500.0,9.889e-05,2]
[348525321,1736604639223,-500.0,9.889e-05,2]
[348525322,1736604639232,-500.0,9.889e-05,2]
[348525323,1736604639241,-500.0,9.889e-05,2]
[348525324,1736604639251,-500.0,9.889e-05,2]
[348525325,1736604639260,-500.0,9.889e-05,2]
[348525326,1736604639271,-500.0,9.889e-05,2]
[348525327,1736604639281,-500.0,9.889e-05,2]
[348525328,1736604639291,-500.0,9.889e-05,2]
[348525329,1736604639301,-500.0,9.889e-05,2]
[348525330,1736604639314,-500.0,9.889e-05,2]
[348525331,1736604639325,-500.0,9.889e-05,2]
[348525332,1736604639334,-500.0,9.889e-05,2]
[348525333,1736604639344,-500.0,9.889e-05,2]
[348525334,1736604639355,-500.0,9.889e-05,2]
[348525335,1736604639365,-541.66,9.889e-05,2]
[348525336,1736604639374,-500.0,9.889e-05,2]
[348525337,1736604639385,-500.0,9.889e-05,2]
[348525338,1736604639395,-500.0,9.889e-05,2]
[348525339,1736604639405,-500.0,9.889e-05,2]
[348525340,1736604639414,-500.0,9.889e-05,2]
[348525341,1736604639423,-500.0,9.889e-05,2]
[348525342,1736604639433,-500.0,9.889e-05,2]
[348525343,1736604639442,-500.0,9.889e-05,2]
[348525344,1736604639452,-500.0,9.889e-05,2]
[348525345,1736604639461,-500.0,9.889e-05,2]
[348525346,1736604639470,-520.83,9.889e-05,2]
[348525347,1736604639479,-523.16,9.889e-05,2]
[348525348,1736604639489,-500.0,9.889e-05,2]
[348525350,1736604639498,-500.0,9.889e-05,2]
[348525352,1736604639507,-500.0,9.889e-05,2]
[348525353,1736604639518,-500.0,9.889e-05,2]
[348525354,1736604639527,-500.0,9.889e-05,2]
[348525355,1736604639536,-667.71,9.889e-05,2]
[348525356,1736604639545,-500.0,9.889e-05,2]
[348525357,1736604639555,-500.0,9.889e-05,2]
[348525358,1736604639564,-500.0,9.889e-05,2]
[348525359,1736604639573,-500.0,9.889e-05,2]
[348525360,1736604639583,-500.0,9.889e-05,2]
[348525361,1736604639592,-303.93431284,9.889e-05,2]
[348525362,1736604639602,-500.0,9.889e-05,2]
[348525363,1736604639611,-500.0,9.889e-05,2]
[348525364,1736604639620,-500.0,9.889e-05,2]
[348525365,1736604639630,-618.88,9.889e-05,2]
[348525366,1736604639639,-500.0,9.889e-05,2]
[348525367,1736604639648,-158.9431274,9.889e-05,2]
[348525368,1736604639658,-500.0,9.889e-05,2]
[348525369,1736604639667,-500.0,9.889e-05,2]
[348525370,1736604639676,-500.0,9.889e-05,2]
[348525371,1736604639686,-500.0,9.889e-05,2]
[348525372,1736604639696,-593.66,9.889e-05,2]
[348525373,1736604639705,-82.690688,9.889e-05,2]
[348525374,1736604639721,-417.309312,9.889e-05,2]
[348525375,1736604639731,-500.0,9.889e-05,2]
[348525376,1736604639741,-500.0,9.889e-05,2]
[348525377,1736604639750,-500.0,9.889e-05,2]
[348525378,1736604639761,-59.82929616,9.889e-05,2]
[348525379,1736604640258,-500.0,9.888e-05,2]
[348525380,1736604640271,-440.17070384,9.889e-05,2]
[348525381,1736604640280,-500.0,9.889e-05,2]
[348525382,1736604640290,-713.91,9.889e-05,2]
[348525383,1736604640301,-495.42761501,9.889e-05,2]
[348525384,1736604640310,-125.82168115,9.889e-05,2]
[348525385,1736604640332,-374.17831885,9.889e-05,2]
[348525386,1736604640341,-500.0,9.889e-05,2]
[348525387,1736604640350,-523.51123551,9.889e-05,2]
[348525388,1736604640359,-454.31044564,9.889e-05,2]
[348525650,1736604642823,-500.0,9.888e-05,2]
[348525652,1736604642833,-436.42594267,9.888e-05,2]
[348525661,1736604642904,-63.57405733,9.888e-05,2]
[348525663,1736604642914,-76.97955436,9.889e-05,2]
[348525665,1736604642923,-500.0,9.889e-05,2]
[348525667,1736604642933,-500.0,9.889e-05,2]
[348525669,1736604642942,-500.0,9.889e-05,2]
[348525671,1736604642951,-500.0,9.889e-05,2]
[348525673,1736604642960,-500.0,9.889e-05,2]
[348525675,1736604642969,-500.0,9.889e-05,2]
[348525677,1736604642979,-607.0,9.889e-05,2]
[348525679,1736604642988,-500.0,9.889e-05,2]
[348525681,1736604642998,-500.0,9.889e-05,2]
[348525682,1736604643006,-500.0,9.889e-05,2]
[348525685,1736604643016,-500.0,9.889e-05,2]
[348525687,1736604643025,-500.0,9.889e-05,2]
[348525688,1736604643035,-500.0,9.889e-05,2]
[348525690,1736604643044,-500.0,9.889e-05,2]
[348525693,1736604643054,-500.0,9.889e-05,2]
[348525694,1736604643063,-500.0,9.889e-05,2]
[348525696,1736604643072,-500.0,9.889e-05,2]
[348525698,1736604643082,-500.0,9.889e-05,2]
[348525700,1736604643091,-500.0,9.889e-05,2]
[348525702,1736604643100,-500.0,9.889e-05,2]
[348525704,1736604643109,-500.0,9.889e-05,2]
[348525706,1736604643118,-500.0,9.889e-05,2]
[348525708,1736604643128,-500.0,9.889e-05,2]
[348525710,1736604643138,-222.01165208,9.889e-05,2]
[348525712,1736604643147,-500.0,9.889e-05,2]
[348525714,1736604643155,-500.0,9.889e-05,2]
[348525716,1736604643165,-502.76386142,9.889e-05,2]
[348525718,1736604643174,-500.0,9.889e-05,2]
[348525720,1736604643183,-500.0,9.889e-05,2]
[348525722,1736604643193,-500.0,9.889e-05,2]
[348525724,1736604643202,-597.13,9.889e-05,2]
[348525726,1736604643211,-500.0,9.889e-05,2]
[348525728,1736604643221,-351.97,9.889e-05,2]
[348525730,1736604643230,-500.0,9.889e-05,2]
[348525732,1736604643240,-500.0,9.889e-05,2]
[348525734,1736604643249,-500.0,9.889e-05,2]
[348525736,1736604643259,-537.52,9.889e-05,2]
[348525738,1736604643274,-500.0,9.889e-05,2]
[348525740,1736604643284,-500.0,9.889e-05,2]
[348525742,1736604643293,-500.0,9.889e-05,2]
[348525744,1736604643304,-500.0,9.889e-05,2]
[348525745,1736604643316,-759.87,9.889e-05,2]
[348525746,1736604643325,-500.0,9.889e-05,2]
[348525747,1736604643335,-500.0,9.889e-05,2]
[348525748,1736604643344,-500.0,9.889e-05,2]
[348525749,1736604643354,-500.0,9.889e-05,2]
[348525750,1736604643363,-500.0,9.889e-05,2]
[348525751,1736604643372,-522.37,9.889e-05,2]
[348525752,1736604643382,-500.0,9.889e-05,2]
[348525753,1736604643391,-500.0,9.889e-05,2]
[348525755,1736604643400,-500.0,9.889e-05,2]